[Event "*** Titled Tuesday Blitz"]
[Site "Chess.com"]
[Date "2021.03.09"]
[Round "9"]
[White "Reader777"]
[Black "Kildepiotr"]
[Result "1-0"]
[WhiteElo "2795"]
[BlackElo "2566"]
[TimeControl "180+1"]
[EndTime "11:48:21 PST"]
[Termination "Reader777 won by resignation"]

1. d4 {[%clk 0:03:00.9]} 1... c5 {[%clk 0:02:55.4]} 2. d5 {[%clk 0:03:00.1]}
2... e5 {[%clk 0:02:55.6]} 3. e4 {[%clk 0:02:58.2]} 3... d6 {[%clk 0:02:55.8]}
4. Bb5+ {[%clk 0:02:54.3]} 4... Nd7 {[%clk 0:02:55.8]} 5. a4 {[%clk 0:02:54]}
5... Be7 {[%clk 0:02:55.3]} 6. Nf3 {[%clk 0:02:52.6]} 6... Nf6 {[%clk
0:02:55.3]} 7. Nbd2 {[%clk 0:02:50.1]} 7... O-O {[%clk 0:02:55.6]} 8. O-O {[%clk
0:02:48.8]} 8... Ne8 {[%clk 0:02:55.7]} 9. Bd3 {[%clk 0:02:47.4]} 9... Nc7
{[%clk 0:02:55.5]} 10. Qe2 {[%clk 0:02:45.3]} 10... Bg5 {[%clk 0:02:51]} 11.
Nxg5 {[%clk 0:02:42.4]} 11... Qxg5 {[%clk 0:02:51.9]} 12. Nc4 {[%clk 0:02:40.1]}
12... Qe7 {[%clk 0:02:51.4]} 13. f4 {[%clk 0:02:39.9]} 13... exf4 {[%clk
0:02:50]} 14. Bxf4 {[%clk 0:02:39.1]} 14... Ne8 {[%clk 0:02:50.4]} 15. Rae1
{[%clk 0:02:37]} 15... f6 {[%clk 0:02:47.6]} 16. Ne3 {[%clk 0:02:36]} 16... Ne5
{[%clk 0:02:47.5]} 17. Bb5 {[%clk 0:02:23.4]} 17... Nc7 {[%clk 0:02:43.9]} 18.
Bd3 {[%clk 0:02:16.5]} 18... Bd7 {[%clk 0:02:43.5]} 19. Qf2 {[%clk 0:02:15]}
19... Rad8 {[%clk 0:02:19.3]} 20. b3 {[%clk 0:02:10]} 20... a6 {[%clk
0:02:15.3]} 21. Be2 {[%clk 0:02:04.6]} 21... b5 {[%clk 0:02:13]} 22. axb5 {[%clk
0:02:04.1]} 22... axb5 {[%clk 0:02:13.1]} 23. Ra1 {[%clk 0:02:03.7]} 23... Ra8
{[%clk 0:02:12.9]} 24. h3 {[%clk 0:01:59]} 24... Rfb8 {[%clk 0:02:09.5]} 25. Qg3
{[%clk 0:01:51.4]} 25... Rxa1 {[%clk 0:02:03.6]} 26. Rxa1 {[%clk 0:01:50.2]}
26... Ra8 {[%clk 0:02:04.5]} 27. Rxa8+ {[%clk 0:01:48]} 27... Nxa8 {[%clk
0:02:05.4]} 28. Bg4 {[%clk 0:01:22]} 28... Nb6 {[%clk 0:01:56]} 29. Bxd7 {[%clk
0:01:19.8]} 29... Nbxd7 {[%clk 0:01:56.9]} 30. Nf5 {[%clk 0:01:19.3]} 30... Qf8
{[%clk 0:01:57.4]} 31. Bh6 {[%clk 0:01:16.4]} 31... Ng6 {[%clk 0:01:51]} 32.
Bxg7 {[%clk 0:01:14.3]} 32... Qa8 {[%clk 0:01:48.1]} 33. Qxd6 {[%clk 0:01:10.3]}
33... Qa1+ {[%clk 0:01:47.9]} 34. Kh2 {[%clk 0:01:09.7]} 34... Qe5+ {[%clk
0:01:47.2]} 35. Qxe5 {[%clk 0:01:09.1]} 35... Ngxe5 {[%clk 0:01:45.2]} 36. Bh6
{[%clk 0:01:09]} 36... c4 {[%clk 0:01:44.8]} 37. Bf4 {[%clk 0:01:06.5]} 37...
cxb3 {[%clk 0:01:43.8]} 38. cxb3 {[%clk 0:01:06.8]} 38... Nd3 {[%clk 0:01:43.5]}
39. Be3 {[%clk 0:01:01.6]} 39... N7c5 {[%clk 0:01:43]} 40. d6 {[%clk 0:00:59.6]}
40... Kf7 {[%clk 0:01:41.1]} 41. Nd4 {[%clk 0:00:56.6]} 41... Nxe4 {[%clk
0:01:38.5]} 42. Nxb5 {[%clk 0:00:55.9]} 42... Ke6 {[%clk 0:01:37.9]} 43. g4
{[%clk 0:00:47.1]} 43... Nxd6 {[%clk 0:01:37.3]} 44. Nxd6 {[%clk 0:00:47.1]}
44... Kxd6 {[%clk 0:01:38.2]} 45. Kg3 {[%clk 0:00:47.6]} 45... Ke5 {[%clk
0:01:36.5]} 46. Kh4 {[%clk 0:00:46.8]} 46... f5 {[%clk 0:01:34.5]} 47. g5 {[%clk
0:00:41.7]} 47... f4 {[%clk 0:01:34.5]} 48. Ba7 {[%clk 0:00:41.5]} 48... Ke4
{[%clk 0:01:28.9]} 49. Kh5 {[%clk 0:00:38.5]} 49... f3 {[%clk 0:01:27.6]} 50.
Kh6 {[%clk 0:00:37.2]} 50... Kf5 {[%clk 0:01:22.3]} 51. h4 {[%clk 0:00:34.2]}
51... Kg4 {[%clk 0:00:39.6]} 52. Kxh7 {[%clk 0:00:33.3]} 52... Nf4 {[%clk
0:00:30.3]} 53. g6 {[%clk 0:00:30.8]} 53... Ne6 {[%clk 0:00:28.3]} 54. g7 {[%clk
0:00:29.6]} 54... Nxg7 {[%clk 0:00:28.1]} 55. Kxg7 {[%clk 0:00:30.2]} 55... Kxh4
{[%clk 0:00:29]} 56. Bf2+ {[%clk 0:00:29.6]} 56... Kg4 {[%clk 0:00:28.4]} 57. b4
{[%clk 0:00:30.3]} 57... Kf5 {[%clk 0:00:26.5]} 58. b5 {[%clk 0:00:31]} 58...
Ke6 {[%clk 0:00:26.6]} 59. b6 {[%clk 0:00:31.7]} 59... Kd6 {[%clk 0:00:26.9]}
60. Kf6 {[%clk 0:00:32.2]} 60... Kc6 {[%clk 0:00:27.2]} 61. Kf5 {[%clk
0:00:32.9]} 1-0

[Event "*** Titled Tuesday Blitz"]
[Site "Chess.com"]
[Date "2021.03.09"]
[Round "9"]
[White "klimkoj"]
[Black "J36225"]
[Result "0-1"]
[WhiteElo "2599"]
[BlackElo "2501"]
[TimeControl "180+1"]
[EndTime "11:48:23 PST"]
[Termination "J36225 won on time"]

1. e4 {[%clk 0:03:00.9]} 1... e5 {[%clk 0:02:59.7]} 2. Nf3 {[%clk 0:03:01.3]}
2... Nc6 {[%clk 0:02:59.3]} 3. Bb5 {[%clk 0:03:00.7]} 3... a6 {[%clk 0:02:59]}
4. Ba4 {[%clk 0:03:00.3]} 4... Nf6 {[%clk 0:02:58.6]} 5. O-O {[%clk 0:03:00]}
5... Nxe4 {[%clk 0:02:56.7]} 6. d4 {[%clk 0:02:56.9]} 6... b5 {[%clk 0:02:56.4]}
7. Bb3 {[%clk 0:02:56.8]} 7... d5 {[%clk 0:02:56.2]} 8. dxe5 {[%clk 0:02:56.4]}
8... Be6 {[%clk 0:02:55.9]} 9. Qe2 {[%clk 0:02:55.9]} 9... Be7 {[%clk
0:02:52.4]} 10. Rd1 {[%clk 0:02:55]} 10... O-O {[%clk 0:02:52.1]} 11. c4 {[%clk
0:02:53.1]} 11... bxc4 {[%clk 0:02:51.9]} 12. Bxc4 {[%clk 0:02:53.3]} 12... Bc5
{[%clk 0:02:51.7]} 13. Be3 {[%clk 0:02:50.3]} 13... Bxe3 {[%clk 0:02:51.4]} 14.
Qxe3 {[%clk 0:02:51.2]} 14... Qb8 {[%clk 0:02:51]} 15. Bb3 {[%clk 0:02:36.1]}
15... Qb6 {[%clk 0:02:50.6]} 16. Qxb6 {[%clk 0:02:22.4]} 16... cxb6 {[%clk
0:02:49]} 17. Nc3 {[%clk 0:02:23.3]} 17... Nxc3 {[%clk 0:02:43.4]} 18. bxc3
{[%clk 0:02:24.2]} 18... Rfd8 {[%clk 0:02:42.9]} 19. Rd3 {[%clk 0:02:01.8]}
19... Na5 {[%clk 0:02:04.6]} 20. Nd4 {[%clk 0:01:57.8]} 20... Rac8 {[%clk
0:02:02.7]} 21. f4 {[%clk 0:01:57.3]} 21... Nc6 {[%clk 0:01:52.8]} 22. Nxc6
{[%clk 0:01:34.4]} 22... Rxc6 {[%clk 0:01:52.2]} 23. Rad1 {[%clk 0:01:34.7]}
23... Rdc8 {[%clk 0:01:52]} 24. Bxd5 {[%clk 0:01:16.2]} 24... Rxc3 {[%clk
0:01:48.8]} 25. Bxe6 {[%clk 0:00:56.3]} 25... fxe6 {[%clk 0:01:49.7]} 26. Rd7
{[%clk 0:00:55.7]} 26... Rc1 {[%clk 0:01:41.2]} 27. g3 {[%clk 0:00:30]} 27...
Rxd1+ {[%clk 0:01:10.4]} 28. Rxd1 {[%clk 0:00:30.9]} 28... Rc7 {[%clk 0:01:10]}
29. Rd6 {[%clk 0:00:30.7]} 29... Kf7 {[%clk 0:01:09.5]} 30. Rxb6 {[%clk
0:00:30.6]} 30... Rc1+ {[%clk 0:01:08.5]} 31. Kg2 {[%clk 0:00:30.1]} 31... Rc2+
{[%clk 0:01:09.4]} 32. Kh3 {[%clk 0:00:28.3]} 32... Rxa2 {[%clk 0:01:08.9]} 33.
Rb7+ {[%clk 0:00:27.4]} 33... Kf8 {[%clk 0:01:06.4]} 34. Ra7 {[%clk 0:00:24.8]}
34... a5 {[%clk 0:01:04.5]} 35. g4 {[%clk 0:00:21.8]} 35... a4 {[%clk
0:00:55.1]} 36. f5 {[%clk 0:00:19.6]} 36... Re2 {[%clk 0:00:41.1]} 37. f6 {[%clk
0:00:16.8]} 37... g6 {[%clk 0:00:28.4]} 38. Rxh7 {[%clk 0:00:10.3]} 38... Rxe5
{[%clk 0:00:27]} 39. Kh4 {[%clk 0:00:08.7]} 39... Ra5 {[%clk 0:00:23]} 40. g5
{[%clk 0:00:05.9]} 40... a3 {[%clk 0:00:22.6]} 41. Rh8+ {[%clk 0:00:06]} 41...
Kf7 {[%clk 0:00:21.9]} 42. Rh7+ {[%clk 0:00:05.1]} 42... Kg8 {[%clk 0:00:21.2]}
43. Rd7 {[%clk 0:00:02.4]} 43... a2 {[%clk 0:00:20.4]} 44. Rd8+ {[%clk
0:00:01.8]} 44... Kf7 {[%clk 0:00:20.6]} 45. Rd7+ {[%clk 0:00:02.2]} 45... Ke8
{[%clk 0:00:20.8]} 46. f7+ {[%clk 0:00:02.3]} 46... Kf8 {[%clk 0:00:20]} 0-1

[Event "*** Titled Tuesday Blitz"]
[Site "Chess.com"]
[Date "2021.03.09"]
[Round "9"]
[White "Kobalia"]
[Black "MITerryble"]
[Result "1/2-1/2"]
[WhiteElo "2741"]
[BlackElo "2938"]
[TimeControl "180+1"]
[EndTime "11:48:25 PST"]
[Termination "Game drawn by repetition"]

1. e4 {[%clk 0:03:00.9]} 1... g6 {[%clk 0:02:57.6]} 2. d4 {[%clk 0:03:00.2]}
2... Bg7 {[%clk 0:02:57.9]} 3. Nf3 {[%clk 0:03:00.3]} 3... d6 {[%clk 0:02:57.8]}
4. Bc4 {[%clk 0:03:00.2]} 4... e6 {[%clk 0:02:57.5]} 5. O-O {[%clk 0:02:59.5]}
5... a6 {[%clk 0:02:57.8]} 6. Bb3 {[%clk 0:02:58.3]} 6... b6 {[%clk 0:02:56.7]}
7. Nbd2 {[%clk 0:02:58.2]} 7... Bb7 {[%clk 0:02:57]} 8. Re1 {[%clk 0:02:58.4]}
8... Nd7 {[%clk 0:02:57.2]} 9. c3 {[%clk 0:02:57.8]} 9... Ne7 {[%clk 0:02:57.3]}
10. Nf1 {[%clk 0:02:57.1]} 10... h6 {[%clk 0:02:57.6]} 11. Ng3 {[%clk
0:02:55.3]} 11... b5 {[%clk 0:02:48.9]} 12. Be3 {[%clk 0:02:53.5]} 12... c5
{[%clk 0:02:42.9]} 13. h3 {[%clk 0:02:48.4]} 13... Qc7 {[%clk 0:02:41.8]} 14.
Qd2 {[%clk 0:02:47.8]} 14... c4 {[%clk 0:02:32]} 15. Bc2 {[%clk 0:02:46.7]}
15... e5 {[%clk 0:02:30.9]} 16. Rad1 {[%clk 0:02:45.3]} 16... Rd8 {[%clk
0:02:26.6]} 17. Nh2 {[%clk 0:02:39.6]} 17... h5 {[%clk 0:02:18.1]} 18. Bg5
{[%clk 0:02:24.9]} 18... Nf6 {[%clk 0:01:50.8]} 19. Nf3 {[%clk 0:02:20.4]} 19...
O-O {[%clk 0:01:46]} 20. Bh6 {[%clk 0:02:14.4]} 20... Nh7 {[%clk 0:01:44.4]} 21.
Qe3 {[%clk 0:02:08.4]} 21... Rfe8 {[%clk 0:01:35.3]} 22. Bxg7 {[%clk 0:02:07.2]}
22... Kxg7 {[%clk 0:01:36.2]} 23. Nh4 {[%clk 0:02:06]} 23... d5 {[%clk
0:01:09.3]} 24. dxe5 {[%clk 0:02:04.1]} 24... Qxe5 {[%clk 0:01:09.1]} 25. f4
{[%clk 0:01:53.4]} 25... Qf6 {[%clk 0:01:06.7]} 26. Nf3 {[%clk 0:01:45.7]} 26...
dxe4 {[%clk 0:01:06.2]} 27. Rxd8 {[%clk 0:01:44.6]} 27... Rxd8 {[%clk
0:01:05.6]} 28. Nxe4 {[%clk 0:01:38.2]} 28... Bxe4 {[%clk 0:01:01.9]} 29. Bxe4
{[%clk 0:01:36.5]} 29... Nf8 {[%clk 0:00:58.4]} 30. Nd4 {[%clk 0:01:32]} 30...
Ne6 {[%clk 0:00:50.6]} 31. Nxe6+ {[%clk 0:01:26]} 31... Qxe6 {[%clk 0:00:51.5]}
32. Bb7 {[%clk 0:01:23.9]} 32... Qxe3+ {[%clk 0:00:47.3]} 33. Rxe3 {[%clk
0:01:23]} 33... Rd1+ {[%clk 0:00:41.1]} 34. Kf2 {[%clk 0:01:20.2]} 34... Nd5
{[%clk 0:00:41]} 35. Re1 {[%clk 0:01:05.4]} 35... Rd2+ {[%clk 0:00:37.5]} 36.
Re2 {[%clk 0:01:05.2]} 36... Rd1 {[%clk 0:00:36.6]} 37. g3 {[%clk 0:00:57.7]}
37... a5 {[%clk 0:00:35.6]} 38. Ba6 {[%clk 0:00:56.8]} 38... Nc7 {[%clk
0:00:34.5]} 39. Bb7 {[%clk 0:00:54.8]} 39... b4 {[%clk 0:00:32.7]} 40. cxb4
{[%clk 0:00:44.4]} 40... axb4 {[%clk 0:00:33.6]} 41. Rc2 {[%clk 0:00:44.2]}
41... Rd4 {[%clk 0:00:30.9]} 42. Bf3 {[%clk 0:00:33.1]} 42... h4 {[%clk
0:00:24.7]} 43. Be2 {[%clk 0:00:32.5]} 43... hxg3+ {[%clk 0:00:10.7]} 44. Kxg3
{[%clk 0:00:33.4]} 44... Nd5 {[%clk 0:00:10.5]} 45. Rxc4 {[%clk 0:00:30.3]}
45... Rd2 {[%clk 0:00:10.4]} 46. Bf3 {[%clk 0:00:25.2]} 46... Ne3 {[%clk
0:00:09.9]} 47. Rxb4 {[%clk 0:00:23.6]} 47... Nf5+ {[%clk 0:00:09.2]} 48. Kg4
{[%clk 0:00:22.4]} 48... Nh6+ {[%clk 0:00:09.3]} 49. Kg3 {[%clk 0:00:19.5]}
49... Nf5+ {[%clk 0:00:08.2]} 50. Kg4 {[%clk 0:00:19.6]} 50... Ne3+ {[%clk
0:00:04.1]} 51. Kg3 {[%clk 0:00:19.5]} 51... Nf5+ {[%clk 0:00:03.6]} 1/2-1/2

[Event "*** Titled Tuesday Blitz"]
[Site "Chess.com"]
[Date "2021.03.09"]
[Round "9"]
[White "ShimanovAlex"]
[Black "ChessWarrior7197"]
[Result "0-1"]
[WhiteElo "2804"]
[BlackElo "2933"]
[TimeControl "180+1"]
[EndTime "11:48:30 PST"]
[Termination "ChessWarrior7197 won by resignation"]

1. Nf3 {[%clk 0:03:00.9]} 1... d5 {[%clk 0:02:59.5]} 2. e3 {[%clk 0:03:00.4]}
2... Nf6 {[%clk 0:02:59]} 3. c4 {[%clk 0:03:00.4]} 3... e6 {[%clk 0:02:58.5]} 4.
b3 {[%clk 0:03:00.2]} 4... b6 {[%clk 0:02:58.8]} 5. Bb2 {[%clk 0:03:00.4]} 5...
Bb7 {[%clk 0:02:59.4]} 6. Nc3 {[%clk 0:03:00.7]} 6... a6 {[%clk 0:02:59.2]} 7.
cxd5 {[%clk 0:02:44.2]} 7... exd5 {[%clk 0:02:56.8]} 8. g3 {[%clk 0:02:43.1]}
8... d4 {[%clk 0:02:54]} 9. Nb1 {[%clk 0:02:29.6]} 9... dxe3 {[%clk 0:02:53.8]}
10. fxe3 {[%clk 0:02:29.8]} 10... Bc5 {[%clk 0:02:50.7]} 11. Bg2 {[%clk
0:02:29]} 11... O-O {[%clk 0:02:50.9]} 12. O-O {[%clk 0:02:28.8]} 12... Ne4
{[%clk 0:02:50.2]} 13. Nd4 {[%clk 0:02:22.1]} 13... Bxd4 {[%clk 0:02:38]} 14.
Bxd4 {[%clk 0:02:21.6]} 14... c5 {[%clk 0:02:37.9]} 15. Bb2 {[%clk 0:02:19.8]}
15... Nd7 {[%clk 0:02:20.6]} 16. Rf4 {[%clk 0:01:21.6]} 16... f5 {[%clk
0:02:09.4]} 17. Nc3 {[%clk 0:01:18]} 17... Nxc3 {[%clk 0:02:07.1]} 18. Bxc3
{[%clk 0:01:18.9]} 18... Bxg2 {[%clk 0:02:06.7]} 19. Kxg2 {[%clk 0:01:19.8]}
19... Ne5 {[%clk 0:01:43.6]} 20. Bxe5 {[%clk 0:01:05.5]} 20... Qd5+ {[%clk
0:01:43.8]} 21. Qf3 {[%clk 0:01:06.1]} 21... Qxe5 {[%clk 0:01:44.3]} 22. Rf1
{[%clk 0:01:07]} 22... Rad8 {[%clk 0:01:44.3]} 23. Rf2 {[%clk 0:01:04.7]} 23...
Rf6 {[%clk 0:01:22.1]} 24. d4 {[%clk 0:00:42.8]} 24... cxd4 {[%clk 0:01:20.3]}
25. exd4 {[%clk 0:00:43.7]} 25... Qd5 {[%clk 0:01:19.8]} 26. Qxd5+ {[%clk
0:00:37]} 26... Rxd5 {[%clk 0:01:20.7]} 27. h4 {[%clk 0:00:37.5]} 27... Kf7
{[%clk 0:01:16.9]} 28. Rc2 {[%clk 0:00:37.2]} 28... Rd7 {[%clk 0:01:15.2]} 29.
Kf3 {[%clk 0:00:36.8]} 29... g6 {[%clk 0:01:14.9]} 30. Ke3 {[%clk 0:00:36.5]}
30... h6 {[%clk 0:01:12.4]} 31. Kd3 {[%clk 0:00:36.6]} 31... g5 {[%clk
0:01:12.2]} 32. hxg5 {[%clk 0:00:37.5]} 32... hxg5 {[%clk 0:01:13.1]} 33. Rf3
{[%clk 0:00:36.6]} 33... Kg6 {[%clk 0:01:13.3]} 34. Rcf2 {[%clk 0:00:34.6]}
34... Rd5 {[%clk 0:01:12]} 35. Kc4 {[%clk 0:00:32.6]} 35... Rfd6 {[%clk
0:01:11.5]} 36. Rd3 {[%clk 0:00:32.7]} 36... b5+ {[%clk 0:01:10.5]} 37. Kc3
{[%clk 0:00:32]} 37... a5 {[%clk 0:01:10.9]} 38. a3 {[%clk 0:00:31.4]} 38... Re6
{[%clk 0:01:07.1]} 39. Rfd2 {[%clk 0:00:15.7]} 39... Kh5 {[%clk 0:01:04]} 40. a4
{[%clk 0:00:14.8]} 40... Rc6+ {[%clk 0:01:03.3]} 41. Kb2 {[%clk 0:00:15.1]}
41... b4 {[%clk 0:01:03.1]} 42. Re3 {[%clk 0:00:13.9]} 42... Kg4 {[%clk
0:01:02.2]} 43. Red3 {[%clk 0:00:12.1]} 43... Re6 {[%clk 0:00:58.2]} 44. Kc2
{[%clk 0:00:11.8]} 44... Re4 {[%clk 0:00:57.4]} 45. Kd1 {[%clk 0:00:11.5]} 45...
Re6 {[%clk 0:00:53.5]} 46. Rf2 {[%clk 0:00:10.8]} 46... Rh6 {[%clk 0:00:48.9]}
47. Re2 {[%clk 0:00:10.6]} 47... Rhd6 {[%clk 0:00:32.7]} 48. Red2 {[%clk
0:00:10.9]} 48... Rd8 {[%clk 0:00:32.6]} 49. Ke2 {[%clk 0:00:10.6]} 49... Rh8
{[%clk 0:00:30.8]} 50. Re3 {[%clk 0:00:10.8]} 50... Rh2+ {[%clk 0:00:30.5]} 51.
Kd1 {[%clk 0:00:11]} 51... Rxd2+ {[%clk 0:00:30.7]} 52. Kxd2 {[%clk 0:00:11.9]}
52... Rxd4+ {[%clk 0:00:31.6]} 53. Ke2 {[%clk 0:00:07.4]} 53... Re4 {[%clk
0:00:30.4]} 54. Rxe4+ {[%clk 0:00:07.3]} 54... fxe4 {[%clk 0:00:31.3]} 55. Kf2
{[%clk 0:00:08.2]} 55... e3+ {[%clk 0:00:31.7]} 56. Kg2 {[%clk 0:00:07.4]} 56...
e2 {[%clk 0:00:32.6]} 0-1

[Event "*** Titled Tuesday Blitz"]
[Site "Chess.com"]
[Date "2021.03.09"]
[Round "9"]
[White "ChessQueen"]
[Black "rquery98"]
[Result "0-1"]
[WhiteElo "2773"]
[BlackElo "2666"]
[TimeControl "180+1"]
[EndTime "11:48:30 PST"]
[Termination "rquery98 won by checkmate"]

1. e4 {[%clk 0:03:00.9]} 1... e5 {[%clk 0:02:59.1]} 2. Nf3 {[%clk 0:02:58]} 2...
Nc6 {[%clk 0:02:59.5]} 3. Bb5 {[%clk 0:02:57]} 3... a6 {[%clk 0:02:58.4]} 4. Ba4
{[%clk 0:02:56.8]} 4... Nge7 {[%clk 0:02:56.5]} 5. c3 {[%clk 0:02:55.7]} 5... g6
{[%clk 0:02:55.6]} 6. d4 {[%clk 0:02:54.7]} 6... exd4 {[%clk 0:02:56.5]} 7. cxd4
{[%clk 0:02:54.7]} 7... b5 {[%clk 0:02:56.3]} 8. Bb3 {[%clk 0:02:51.5]} 8... Bg7
{[%clk 0:02:52.1]} 9. O-O {[%clk 0:02:50.9]} 9... O-O {[%clk 0:02:50.5]} 10. Nc3
{[%clk 0:02:49.4]} 10... d6 {[%clk 0:02:50.3]} 11. h3 {[%clk 0:02:38.8]} 11...
Na5 {[%clk 0:02:47.4]} 12. Bc2 {[%clk 0:02:38.5]} 12... c5 {[%clk 0:02:40.8]}
13. Bg5 {[%clk 0:02:29]} 13... h6 {[%clk 0:02:33.6]} 14. Bh4 {[%clk 0:02:23.8]}
14... g5 {[%clk 0:02:32.7]} 15. Bg3 {[%clk 0:02:23.5]} 15... Nc4 {[%clk
0:02:32.2]} 16. Rb1 {[%clk 0:02:20.4]} 16... f5 {[%clk 0:02:25.9]} 17. exf5
{[%clk 0:01:56.9]} 17... Nxf5 {[%clk 0:02:26.8]} 18. Ne2 {[%clk 0:01:52.5]}
18... Bb7 {[%clk 0:02:10]} 19. Qd3 {[%clk 0:01:31.8]} 19... Qf6 {[%clk
0:01:57.8]} 20. Nh2 {[%clk 0:01:23.2]} 20... h5 {[%clk 0:01:48.2]} 21. f4 {[%clk
0:01:10.9]} 21... Nce3 {[%clk 0:01:24]} 22. fxg5 {[%clk 0:01:10.9]} 22... Qxg5
{[%clk 0:01:24.9]} 23. Nf3 {[%clk 0:01:11.1]} 23... Qg6 {[%clk 0:01:11.3]} 24.
Nh4 {[%clk 0:00:52.7]} 24... Nxh4 {[%clk 0:00:59.8]} 25. Rxf8+ {[%clk
0:00:51.9]} 25... Rxf8 {[%clk 0:00:58.5]} 26. Qxg6 {[%clk 0:00:52.2]} 26... Nxg6
{[%clk 0:00:58.5]} 27. Bxg6 {[%clk 0:00:53.1]} 27... cxd4 {[%clk 0:00:51.2]} 28.
Nf4 {[%clk 0:00:30.2]} 28... h4 {[%clk 0:00:47.2]} 29. Bh2 {[%clk 0:00:29.7]}
29... Be5 {[%clk 0:00:43.9]} 30. Nd3 {[%clk 0:00:23.1]} 30... Bxh2+ {[%clk
0:00:40.8]} 31. Kxh2 {[%clk 0:00:24]} 31... Kg7 {[%clk 0:00:29.6]} 32. Bh5
{[%clk 0:00:23.8]} 32... Kh6 {[%clk 0:00:30.2]} 33. Be2 {[%clk 0:00:22.2]} 33...
Bxg2 {[%clk 0:00:30.7]} 34. Rc1 {[%clk 0:00:15.8]} 34... Be4 {[%clk 0:00:30.8]}
35. Kg1 {[%clk 0:00:13.1]} 35... Rg8+ {[%clk 0:00:27.7]} 36. Kf2 {[%clk
0:00:13.2]} 36... Rg2+ {[%clk 0:00:28.2]} 37. Ke1 {[%clk 0:00:12.2]} 37... Bxd3
{[%clk 0:00:18.4]} 38. Bxd3 {[%clk 0:00:13.1]} 38... Rxb2 {[%clk 0:00:18.9]} 39.
Rc6 {[%clk 0:00:12.9]} 39... Rxa2 {[%clk 0:00:16.6]} 40. Rxd6+ {[%clk
0:00:13.4]} 40... Kg5 {[%clk 0:00:17.3]} 41. Rxd4 {[%clk 0:00:13.8]} 41... Ng2+
{[%clk 0:00:16.5]} 42. Kd1 {[%clk 0:00:12.9]} 42... Nf4 {[%clk 0:00:17.4]} 43.
Be4 {[%clk 0:00:07.5]} 43... Nxh3 {[%clk 0:00:15.8]} 44. Bb7 {[%clk 0:00:07.5]}
44... Nf4 {[%clk 0:00:15.5]} 45. Rd8 {[%clk 0:00:05.6]} 45... h3 {[%clk
0:00:14.8]} 46. Rg8+ {[%clk 0:00:05.9]} 46... Kh4 {[%clk 0:00:14.9]} 47. Rh8+
{[%clk 0:00:06.5]} 47... Kg3 {[%clk 0:00:15.6]} 48. Rg8+ {[%clk 0:00:07]} 48...
Kf2 {[%clk 0:00:16.3]} 49. Rf8 {[%clk 0:00:07.5]} 49... Ke3 {[%clk 0:00:16.5]}
50. Re8+ {[%clk 0:00:08]} 50... Kd3 {[%clk 0:00:17.1]} 51. Rd8+ {[%clk
0:00:08.6]} 51... Kc3 {[%clk 0:00:17]} 52. Rf8 {[%clk 0:00:08.6]} 52... Nd3
{[%clk 0:00:16.5]} 53. Rc8+ {[%clk 0:00:07.3]} 53... Kb4 {[%clk 0:00:16.9]} 54.
Rh8 {[%clk 0:00:06.5]} 54... h2 {[%clk 0:00:16.6]} 55. Rh4+ {[%clk 0:00:05.6]}
55... Kc3 {[%clk 0:00:17]} 56. Rh3 {[%clk 0:00:05.1]} 56... Rd2# {[%clk
0:00:17.4]} 0-1

[Event "*** Titled Tuesday Blitz"]
[Site "Chess.com"]
[Date "2021.03.09"]
[Round "9"]
[White "DFeco"]
[Black "ljuks68"]
[Result "0-1"]
[WhiteElo "2297"]
[BlackElo "2451"]
[TimeControl "180+1"]
[EndTime "11:48:30 PST"]
[Termination "ljuks68 won by resignation"]

1. c4 {[%clk 0:03:00.9]} 1... c6 {[%clk 0:02:59.9]} 2. g3 {[%clk 0:02:57]} 2...
d5 {[%clk 0:03:00.2]} 3. Nf3 {[%clk 0:02:50]} 3... Nf6 {[%clk 0:03:00.1]} 4. Bg2
{[%clk 0:02:34.1]} 4... Bg4 {[%clk 0:02:58.5]} 5. O-O {[%clk 0:02:32.9]} 5...
Nbd7 {[%clk 0:02:58.4]} 6. b3 {[%clk 0:02:27.3]} 6... e5 {[%clk 0:02:55.7]} 7.
Bb2 {[%clk 0:02:27.7]} 7... Bd6 {[%clk 0:02:55.2]} 8. h3 {[%clk 0:02:25.5]} 8...
Bh5 {[%clk 0:02:53.6]} 9. Nc3 {[%clk 0:02:21.3]} 9... Rc8 {[%clk 0:02:49.4]} 10.
d3 {[%clk 0:02:20.1]} 10... O-O {[%clk 0:02:48]} 11. Rc1 {[%clk 0:02:04.1]}
11... a6 {[%clk 0:02:40.4]} 12. Qd2 {[%clk 0:01:48.4]} 12... d4 {[%clk
0:02:18.4]} 13. Ne4 {[%clk 0:01:45]} 13... Nxe4 {[%clk 0:02:17.7]} 14. dxe4
{[%clk 0:01:44.3]} 14... Be7 {[%clk 0:02:11.4]} 15. g4 {[%clk 0:01:39.4]} 15...
Bg6 {[%clk 0:02:09.7]} 16. Qc2 {[%clk 0:01:28.2]} 16... Qc7 {[%clk 0:02:04.4]}
17. h4 {[%clk 0:01:12.9]} 17... h5 {[%clk 0:02:01.2]} 18. g5 {[%clk 0:01:06]}
18... f6 {[%clk 0:02:01]} 19. Bh3 {[%clk 0:01:05.4]} 19... Rcd8 {[%clk
0:01:57.4]} 20. Be6+ {[%clk 0:00:59.3]} 20... Kh8 {[%clk 0:01:54.1]} 21. Bf5
{[%clk 0:00:56.4]} 21... Bxf5 {[%clk 0:01:43.2]} 22. exf5 {[%clk 0:00:54]} 22...
fxg5 {[%clk 0:01:42.1]} 23. hxg5 {[%clk 0:00:52]} 23... Nc5 {[%clk 0:01:37.9]}
24. b4 {[%clk 0:00:41.1]} 24... d3 {[%clk 0:01:37.7]} 25. Bxe5 {[%clk
0:00:26.1]} 25... Qd7 {[%clk 0:01:12.6]} 26. exd3 {[%clk 0:00:23.4]} 26... Qxf5
{[%clk 0:01:09.7]} 27. Qc3 {[%clk 0:00:17.9]} 27... Rxd3 {[%clk 0:01:03.8]} 28.
Bxg7+ {[%clk 0:00:17.3]} 28... Kg8 {[%clk 0:00:54.8]} 29. Qe5 {[%clk 0:00:13.4]}
29... Rxf3 {[%clk 0:00:53.4]} 30. Qxf5 {[%clk 0:00:08.4]} 30... R8xf5 {[%clk
0:00:52.5]} 31. bxc5 {[%clk 0:00:07.8]} 31... Rxg5+ {[%clk 0:00:49.5]} 32. Kh2
{[%clk 0:00:07]} 32... Kxg7 {[%clk 0:00:49.6]} 33. Rfe1 {[%clk 0:00:05.8]} 33...
Bxc5 {[%clk 0:00:49.1]} 34. Rcd1 {[%clk 0:00:05.9]} 34... Rgf5 {[%clk
0:00:34.4]} 35. Kh1 {[%clk 0:00:02]} 35... Rxf2 {[%clk 0:00:29.1]} 36. Rd7+
{[%clk 0:00:02.6]} 36... Rf7 {[%clk 0:00:29]} 37. Rxf7+ {[%clk 0:00:02.9]} 37...
Kxf7 {[%clk 0:00:28.7]} 38. Rd1 {[%clk 0:00:03.6]} 38... Ke7 {[%clk 0:00:27.1]}
39. a4 {[%clk 0:00:03.4]} 39... Rc2 {[%clk 0:00:25.2]} 40. Re1+ {[%clk
0:00:03.4]} 40... Kd7 {[%clk 0:00:25.2]} 41. Re4 {[%clk 0:00:03.5]} 41... Ra2
{[%clk 0:00:24.2]} 42. Re5 {[%clk 0:00:02.7]} 42... Bd4 {[%clk 0:00:23]} 43.
Rxh5 {[%clk 0:00:02.4]} 43... Rxa4 {[%clk 0:00:22.3]} 44. Rh7+ {[%clk
0:00:02.2]} 44... Kc8 {[%clk 0:00:22.4]} 45. Kg2 {[%clk 0:00:01.5]} 45... Rxc4
{[%clk 0:00:21.6]} 46. Kf3 {[%clk 0:00:02.3]} 46... a5 {[%clk 0:00:20.8]} 47.
Ke2 {[%clk 0:00:02.8]} 47... a4 {[%clk 0:00:19.6]} 48. Kd3 {[%clk 0:00:03.4]}
48... b5 {[%clk 0:00:19.5]} 49. Rh1 {[%clk 0:00:01.4]} 49... a3 {[%clk
0:00:18.5]} 50. Rf1 {[%clk 0:00:01.2]} 50... a2 {[%clk 0:00:18.2]} 51. Rf8+
{[%clk 0:00:01.4]} 51... Kb7 {[%clk 0:00:17.7]} 52. Rf1 {[%clk 0:00:02.1]} 0-1